[Event "1000GM Spring GM-A 2024"]
[Site "New York"]
[Date "2024.03.28"]
[Round "1.1"]
[White "Ostrovskiy, Aleksandr"]
[Black "Shlyakhtenko, Robert"]
[Result "0-1"]
[ECO "B41"]
[WhiteElo "2411"]
[BlackElo "2384"]
[Annotator "TA"]
[PlyCount "92"]
[EventDate "2024.03.26"]
[EventType "tourn"]
[EventCountry "USA"]
[SourceTitle "playchess.com"]
[Source "ChessBase"]
[SourceQuality "1"]
[TimeControl "5400+30"]

{[%evp 13,92,21,59,21,24,14,31,15,20,14,21,8,11,6,66,30,30,28,28,33,34,29,33,41,22,36,26,27,37,32,32,36,36,14,30,14,14,10,7,18,15,1,17,9,13,0,0,0,0,0,0,-48,-47,-45,-43,-43,-46,-46,-11,-10,0,-48,0,-103,-98,-290,-255,-290,-275,-724,-394,-390,-406,-402,-409,-705,-537,-906,-912,-963,-924]} 1. e4 {[%emt 0:02:46]} c5 {[%emt 0:00:10]} 2. Nf3 {[%emt 0:00:30]} e6 {[%emt 0:00:09]} 3. d4 {[%emt 0:00:47]} cxd4 {[%emt 0:00:07]} 4. Nxd4 {[%emt 0:00:06]} a6 {[%emt 0:00:09]} 5. c4 {[%emt 0:01:31]} Nf6 {[%emt 0:00:16]} 6. Nc3 {[%emt 0:00:09]} Qc7 {[%emt 0:00:25]} 7. a3 {[%emt 0:03:58]} b6 {[%emt 0:00:40]} 8. f4 {[%emt 0:03:39]} Bb7 {[%emt 0:02:11]} 9. Bd3 {[%emt 0:02:40]} Nc6 {[%emt 0:00:15]} 10. Nxc6 {[%emt 0:01:59] White is slightly better.} Qxc6 {[%emt 0:00:15]} 11. Qe2 {[%emt 0:02:12]} Bc5 {[%emt 0:00:44]} 12. Be3 {[%emt 0:01:59]} Bxe3 {[%emt 0:02:06]} 13. Qxe3 {[%emt 0:01:12]} O-O-O {[%emt 0:01:40]} (13... O-O $11) 14. O-O-O {[%emt 0:35:44]} d5 {[%emt 0:00:31]} 15. cxd5 {[%emt 0:05:51]} exd5 {[%emt 0:00:08]} 16. e5 {[%emt 0:03:36]} d4 {[%emt 0:00:06]} 17. Bf5+ {[%emt 0:01:17]} Kc7 $1 {[%emt 0:00:08]} 18. Rxd4 {[%emt 0:03:33]} Rxd4 {[%emt 0:00:07]} (18... Nd5 19. Qe4 Nxc3 20. Qxc6+ Bxc6 21. Rxd8 (21. bxc3 Rxd4 22. cxd4 g5 $11) 21... Rxd8 22. bxc3 $11) 19. Qxd4 {[%emt 0:03:06]} Rd8 {[%emt 0:00:08]} 20. Qf2 {[%emt 0:02:56]} g6 $1 {[%emt 0:00:06]} 21. exf6 {[%emt 0:09:13]} gxf5 {[%emt 0:00:18]} 22. Re1 {[%emt 0:02:22]} Qxf6 {[%emt 0:00:11]} 23. g3 {[%emt 0:01:09]} Kb8 {[%emt 0:03:29]} 24. Qe3 {[%emt 0:01:26]} Bc8 {[%emt 0:12:25]} 25. Kc2 {[%emt 0:05:06]} Qc6 {[%emt 0:07:17]} (25... Qh6 {simplifies} 26. Kb1 Qe6 27. Qe2 Qxe2 28. Rxe2 Be6) 26. Qe7 {[%emt 0:02:14]} Rd7 {[%emt 0:01:25]} 27. Qe5+ {[%emt 0:01:02]} Kb7 {[%emt 0:01:56]} 28. Re2 {[%emt 0:01:34]} (28. Qxf5 $2 Rd2+ 29. Kxd2 Bxf5 $19) 28... Rc7 {[%emt 0:03:41]} 29. Qe8 {[%emt 0:00:34]} Qc4 {[%emt 0:02:22]} 30. Re7 {[%emt 0:00:32]} Bd7 {[%emt 0:03:35]} 31. Qd8 {[%emt 0:00:30]} (31. Rxd7 $2 Qa4+ 32. Kb1 Qxd7 $19) 31... Qd4 {[%emt 0:00:05]} 32. Kb1 {[%emt 0:00:42]} (32. Qf8 $11) 32... Qg1+ $1 $15 {[%emt 0:03:22]} 33. Kc2 {[%emt 0:00:22]} (33. Ka2 Be6+ 34. b3 (34. Nd5 $2 Rxe7 35. Qxe7+ Kc6 $19) 34... Qxh2+ 35. Kb1 Qg1+ 36. Kc2 Qf2+ 37. Kb1 Qg1+ 38. Kb2 Qf2+ 39. Kb1 Qe1+ 40. Nd1 Qe4+ 41. Ka1 Rxe7 42. Qxe7+ Ka8 43. Qd8+ Ka7 44. Qc7+ Qb7 45. Qxb7+ Kxb7 $19) 33... Qxh2+ {[%emt 0:06:13]} 34. Kb1 {[%emt 0:00:13]} Qg1+ {[%emt 0:14:11]} 35. Kc2 {[%emt 0:00:02]} (35. Ka2 Be6+ 36. b3 (36. Nd5 $2 Rxe7 37. Qxe7+ Kc6 $19) 36... Qg2+ 37. Ka1 Qf1+ 38. Kb2 Qf2+ 39. Kb1 Qf1+ 40. Nd1 Rxe7 41. Qxe7+ Kc6 $17) 35... Qf2+ {[%emt 0:00:29]} 36. Kb1 {[%emt 0:01:16]} Qg1+ {[%emt 0:07:24]} 37. Kc2 $1 {[%emt 0:00:01]} (37. Ka2 Be6+ 38. b3 (38. Nd5 $2 Rxe7 39. Qxe7+ Kc6 $19) 38... Qh2+ 39. Kb1 Rxe7 40. Qxe7+ Kc6 41. Qe8+ Kc5 $19) 37... Qd4 {[%emt 0:00:07]} (37... Qg2+ $1 $15 {might be stronger.} 38. Kc1 Qc6) 38. Kc1 {[%emt 0:00:54] [#]} (38. Kb1 $1 $11) 38... Qd3 $1 $17 {[%emt 0:02:34] ...h5 would now be deadly. Really sharp!} 39. a4 $2 {[%emt 0:00:44] This move loses the game for White.} (39. Rxf7 $2 {loses.} Rxc3+ 40. bxc3 Qxc3+ 41. Kd1 Qb3+ 42. Ke2 Qxf7 $19) (39. Qf8 $17) 39... b5 {[%emt 0:01:09]} 40. axb5 {[%emt 0:00:11]} axb5 {[%emt 0:00:03] White must now prevent ...b4.} 41. Re2 $2 {[%emt 0:00:47]} (41. Qf8) 41... Qxg3 {[%emt 0:01:57]} ({Not} 41... Qxe2 42. Qxc7+ Kxc7 43. Nxe2 $17) 42. Rd2 {[%emt 0:00:31]} Qxf4 {[%emt 0:02:04] [#] ...b4 is the strong threat.} 43. Kc2 {[%emt 0:00:30]} Be6 {[%emt 0:07:53] Hoping for ...b4.} 44. Rd4 {[%emt 0:00:33]} (44. Kb1 $142) 44... Qe5 {[%emt 0:01:00] Strongly threatening ...f4. Black is clearly winning.} 45. Kb1 {[%emt 0:00:28]} f4 {[%emt 0:01:21]} 46. Rb4 {[%emt 0:00:30]} Bc4 {[%emt 0:03:11] Weighted Error Value: White=0.47/Black=0.28 (precise) .  Loses game:     	White=1     	---        Mistake:       	White=4     	Black=2      Inaccurate:     	White=2     	Black=2      OK:         	White=15    	Black=12     Best:        	White=2     	Black=3      Strong:       	White=1     	Black=4} 0-1

[Event "1000GM Spring GM-A 2024"]
[Site "New York"]
[Date "2024.03.28"]
[Round "1.2"]
[White "Lomasov, Semyon"]
[Black "Zilka, Stepan"]
[Result "1/2-1/2"]
[ECO "C50"]
[WhiteElo "2565"]
[BlackElo "2589"]
[Annotator "TA"]
[PlyCount "31"]
[EventDate "2024.03.26"]
[EventType "tourn"]
[EventCountry "USA"]
[SourceTitle "playchess.com"]
[Source "ChessBase"]
[SourceQuality "1"]
[TimeControl "5400+30"]

{[%evp 9,31,15,28,8,14,18,5,9,15,19,11,16,18,-2,-5,-2,-6,-16,-6,-20,0,0,0,0]} 1. e4 {[%emt 0:00:03]} e5 {[%emt 0:00:25]} 2. Nf3 {[%emt 0:00:04]} Nc6 {[%emt 0:00:06]} 3. Bc4 {[%emt 0:00:04]} Bc5 {[%emt 0:00:05]} 4. d3 {[%emt 0:01:00]} Nf6 {[%emt 0:00:15]} 5. Nc3 {[%emt 0:00:33]} d6 {[%emt 0:01:50]} 6. a4 {[%emt 0:00:38]} h6 {[%emt 0:01:08] Die Stellung ist ausgeglichen.} 7. O-O {[%emt 0:01:12]} O-O {[%emt 0:01:03]} 8. Be3 {[%emt 0:00:29]} Nd4 {[%emt 0:05:20]} 9. h3 {[%emt 0:03:27]} Nxf3+ {[%emt 0:09:54]} 10. Qxf3 {[%emt 0:00:28]} Bxe3 {[%emt 0:00:04]} 11. fxe3 {[%emt 0:13:07]} Be6 {[%emt 0:00:06]} 12. Bxe6 {[%emt 0:02:51]} fxe6 {[%emt 0:00:08]} 13. Qg3 {[%emt 0:02:37]} Qe7 {[%emt 0:04:35]} 14. Rf3 {[%emt 0:03:04]} Nh7 {[%emt 0:02:14]} 15. Raf1 {[%emt 0:03:46]} Ng5 {[%emt 0:01:26]} 16. Rxf8+ {[%emt 0:03:34] Nicht viel passiert in dieser Partie.   Gewichteter Fehlerwert: Weiß=0.05 (makellos) /Schwarz=0.05 (makellos) .  OK:         	Weiß=3     	Schwarz=3} 1/2-1/2

[Event "1000GM Spring GM-A 2024"]
[Site "New York"]
[Date "2024.03.28"]
[Round "1.3"]
[White "Mardov, Dimitar"]
[Black "Sandeep, S.."]
[Result "1/2-1/2"]
[ECO "B90"]
[WhiteElo "2473"]
[BlackElo "1980"]
[Annotator "TA"]
[PlyCount "64"]
[EventDate "2024.03.26"]
[EventType "tourn"]
[EventCountry "USA"]
[SourceTitle "playchess.com"]
[Source "ChessBase"]
[SourceQuality "1"]
[TimeControl "5400+30"]

{[%evp 12,64,17,11,26,26,0,0,29,8,12,11,0,12,14,2,-7,0,106,101,77,-29,-12,-20,-26,-38,-10,0,0,-63,0,0,0,0,0,-10,-10,-65,-82,-77,-80,-68,-65,-62,-56,-73,-52,-66,-101,-62,-60,-60,-35,-53,-12]} 1. e4 {[%emt 0:00:02]} c5 {[%emt 0:01:12]} 2. Nf3 {[%emt 0:00:04]} d6 {[%emt 0:00:15]} 3. d4 {[%emt 0:00:05]} cxd4 {[%emt 0:00:04]} 4. Nxd4 {[%emt 0:00:03]} Nf6 {[%emt 0:00:04]} 5. Nc3 {[%emt 0:00:04]} a6 {[%emt 0:00:05]} 6. h3 {[%emt 0:00:03]} e5 {[%emt 0:00:07]} 7. Nb3 {[%emt 0:00:04]} Be7 {[%emt 0:00:03]} 8. g4 {[%emt 0:00:04]} h6 {[%emt 0:00:14]} 9. Be3 {[%emt 0:00:03]} b5 {[%emt 0:00:06] The position is equal.} 10. Nd5 {[%emt 0:00:36] Nxf6+ would now be deadly.} Bb7 {[%emt 0:00:06]} 11. Bb6 {[%emt 0:02:33]} Qc8 {[%emt 0:00:01]} 12. Nc7+ {[%emt 0:00:08]} Kf8 {[%emt 0:00:01]} 13. f3 {[%emt 0:00:23]} Nbd7 $1 {[%emt 0:00:05][%cal Bb8d7,Bd7f6,Bf6e4,Be4g3][%mdl 32]} 14. Nxa8 {[%emt 0:00:04][%cal Ob6f2]} Bxa8 {[%emt 0:00:04] [#]} (14... d5 $11 {keeps the balance.}) 15. Bf2 $1 $16 {[%emt 0:12:13]} d5 {[%emt 0:00:27]} 16. Bg2 {[%emt 0:21:21]} ({Only move:} 16. exd5 $16 {d6 is the strong threat.} Nxd5 17. a4) 16... dxe4 $11 {[%emt 0:04:25]} 17. fxe4 {[%emt 0:11:38]} Nxe4 {[%emt 0:15:07]} 18. O-O {[%emt 0:02:09]} Ndf6 {[%emt 0:05:58] aiming for ...h5. A dynamic duo of knights.} 19. Be3 {[%emt 0:06:57]} g6 {[%emt 0:07:42]} 20. Nd2 {[%emt 0:03:44]} (20. Qd3 $11) 20... Kg7 {[%emt 0:16:36]} (20... Ng5 $1 $15) 21. Nxe4 {[%emt 0:00:52]} Nxe4 {[%emt 0:00:05]} 22. Qd3 {[%emt 0:14:42]} Rd8 {[%emt 0:21:48]} 23. Qe2 {[%emt 0:00:48]} Ng3 $36 {[%emt 0:02:33][%csl LRe2,LRf1][%mdl 2048] Black fights for an advantage.} 24. Rxf7+ {[%emt 0:15:27]} Kxf7 $15 {[%emt 0:00:09]} 25. Qf2+ {[%emt 0:00:04] [#]} Nf5 $1 {[%emt 0:05:38]} 26. Bxa8 {[%emt 0:01:06] Hoping for Be4.} Bh4 {[%emt 0:01:53]} 27. Qf1 {[%emt 0:00:36]} Qxa8 {[%emt 0:01:26]} ({Stronger than} 27... Qxc2 28. Bg2 Bg5 (28... Rd3 $2 29. Rc1 $18) 29. Bxg5 hxg5 30. gxf5 (30. Rc1 Qd3 $16) 30... gxf5 31. Rc1 $16) 28. gxf5 {[%emt 0:00:05]} Qe4 {[%emt 0:02:30]} 29. fxg6+ {[%emt 0:00:28]} Kxg6 {[%emt 0:00:08]} 30. Qg2+ {[%emt 0:00:51]} Qxg2+ {[%emt 0:00:09] Black is slightly better.} 31. Kxg2 {[%emt 0:00:03]} e4 {[%emt 0:03:05]} 32. Rg1 {[%emt 0:03:52]} Bf6 {[%emt 0:04:45] Weighted Error Value: White=0.17 (very precise) /Black=0.16 (very precise) .  Mistake:       	White=3     	Black=2      Inaccurate:     	---       	Black=3      OK:         	White=12    	Black=9      Best:        	White=2     	Black=5      Strong:       	White=1     	Black=1} 1/2-1/2

[Event "1000GM Spring GM-A 2024"]
[Site "New York"]
[Date "2024.03.28"]
[Round "1.4"]
[White "Bortnyk, Mykola"]
[Black "Novik, Maxim"]
[Result "1-0"]
[ECO "B11"]
[WhiteElo "2453"]
[BlackElo "2415"]
[Annotator "TA"]
[PlyCount "143"]
[EventDate "2024.03.26"]
[EventType "tourn"]
[EventCountry "USA"]
[SourceTitle "playchess.com"]
[Source "ChessBase"]
[SourceQuality "1"]
[TimeControl "5400+30"]

{[%evp 9,143,0,24,18,21,18,21,34,15,-10,-9,-4,-8,-9,-11,-10,-10,-18,-8,-13,18,0,3,0,8,-7,0,0,0,0,0,18,115,104,127,121,120,122,119,120,116,97,180,182,183,183,200,197,246,185,179,116,111,98,168,183,174,182,193,190,176,190,176,177,179,186,212,116,144,143,143,125,114,91,71,82,81,62,64,0,0,0,0,0,0,0,0,0,0,0,0,0,0,0,0,0,0,0,8,14,219,83,66,66,267,172,151,144,144,8,8,0,0,0,267,231,139,0,0,0,0,0,211,210,29977,29978,29978,29979,29983,29984,29985,29984,29984,29985,29987,29987]} 1. e4 {[%emt 0:00:14]} c6 {[%emt 0:00:53]} 2. Nc3 {[%emt 0:00:35]} d5 {[%emt 0:00:05]} 3. Qf3 {[%emt 0:00:14]} dxe4 {[%emt 0:08:05]} 4. Nxe4 {[%emt 0:00:21]} Nf6 {[%emt 0:01:23]} 5. Bc4 {[%emt 0:01:11]} e6 {[%emt 0:05:08]} 6. Ne2 {[%emt 0:03:17]} Nbd7 {[%emt 0:04:51]} 7. d4 {[%emt 0:00:19] Dodges Ne5} Be7 {[%emt 0:00:17]} 8. O-O {[%emt 0:05:41] The position is equal.} O-O {[%emt 0:00:22]} 9. Rd1 {[%emt 0:05:24] [#]} Ne5 $1 {[%emt 0:04:08]} 10. Nxf6+ {[%emt 0:00:41]} Bxf6 {[%emt 0:00:28]} 11. Qc3 {[%emt 0:00:08]} Nxc4 {[%emt 0:01:47]} 12. Qxc4 {[%emt 0:00:03]} e5 {[%emt 0:00:46]} 13. Be3 {[%emt 0:00:09]} Be6 {[%emt 0:00:58]} 14. Qc3 {[%emt 0:00:04]} Qc7 {[%emt 0:18:51] [#]} 15. d5 $1 {[%emt 0:04:58]} Bf5 {[%emt 0:00:32]} (15... Bxd5 $2 {loses.} 16. Rxd5 a5 17. Ng3 $18) (15... Bg4 16. d6) 16. Ng3 {[%emt 0:02:32]} Bg6 {[%emt 0:00:48]} 17. dxc6 {[%emt 0:01:41]} bxc6 {[%emt 0:12:40]} 18. Qc4 {[%emt 0:01:37]} Qb7 {[%emt 0:03:48][%cal Of6e7]} 19. b3 {[%emt 0:11:47]} Qb5 {[%emt 0:00:34]} 20. Qg4 {[%emt 0:00:16]} Bxc2 {[%emt 0:03:55] [#]} (20... Qa5 $11) 21. Nh5 $1 $16 {[%emt 0:00:51]} Bg6 {[%emt 0:02:25]} 22. Nxf6+ {[%emt 0:00:27]} gxf6 {[%emt 0:00:02] Black is weak on the dark squares} 23. Qh4 $36 {[%emt 0:00:12][%mdl 2048] White has strong initiative.} Rfe8 {[%emt 0:09:54]} 24. Rd6 {[%emt 0:02:55]} Rad8 {[%emt 0:01:28]} 25. Rxf6 {[%emt 0:04:59]} Qe2 {[%emt 0:03:22]} (25... a5 $16 26. Rc1 Qb4) 26. h3 $1 $18 {[%emt 0:00:12]} (26. Bxa7 $2 {gets mated.} Rd1+ 27. Rxd1 Qxd1#) 26... Rd1+ {[%emt 0:05:00]} 27. Rxd1 {[%emt 0:00:08]} Qxd1+ {[%emt 0:00:00]} 28. Kh2 {[%emt 0:00:02]} Qd8 {[%emt 0:00:20]} (28... Qd7 $142 29. Bh6 a5) 29. Bg5 {[%emt 0:07:31][%cal Of6g6]} Qd7 {[%emt 0:00:05]} 30. Qh6 {[%emt 0:00:40]} (30. Bh6 $18) 30... Re6 $16 {[%emt 0:02:03]} 31. h4 {[%emt 0:00:09] Hoping for h5.} Qd6 {[%emt 0:02:00]} (31... e4 $16 {was worth a try.} 32. Rxe6 Qxe6) 32. Rxe6 $1 $18 {[%emt 0:00:07]} fxe6 {[%emt 0:05:18][%mdl 4096] Endgame. KQB-KQB} 33. h5 {[%emt 0:00:13]} Bf5 {[%emt 0:00:07]} 34. Bf6 {[%emt 0:00:50][%csl Gf6][%cal Rh6g7]} e4+ {[%emt 0:00:35]} 35. g3 {[%emt 0:00:02]} Qf8 {[%emt 0:00:07] Repels Qg7+} 36. Qg5+ {[%emt 0:00:34]} Kf7 {[%emt 0:00:01]} 37. Bd4 {[%emt 0:00:24]} a6 {[%emt 0:01:26]} 38. Kg1 {[%emt 0:03:36]} (38. Qf4 $18) 38... Qd6 $16 {[%emt 0:01:24]} 39. Qg7+ {[%emt 0:11:18]} Ke8 {[%emt 0:00:03]} 40. g4 {[%emt 0:01:21] White is more active.} Bxg4 {[%emt 0:00:04]} 41. Qxg4 {[%emt 0:01:34]} (41. Qg8+ {looks sharper.} Kd7 42. Bf6 Qd1+ 43. Kh2) 41... Qxd4 {[%emt 0:00:08] KQ-KQ} 42. Qg8+ {[%emt 0:00:26]} ({Don't do} 42. Qxe6+ Kf8 $18) 42... Ke7 {[%emt 0:00:33]} 43. Qxh7+ {[%emt 0:00:09]} Kd6 {[%emt 0:02:43]} 44. Qg6 {[%emt 0:00:15]} (44. Qf7 $14) 44... e3 $1 $11 {[%emt 0:01:33]} 45. fxe3 {[%emt 0:02:54]} Qxe3+ {[%emt 0:00:11]} 46. Kg2 {[%emt 0:00:05]} Qe2+ {[%emt 0:01:13]} 47. Kg3 {[%emt 0:00:02] aiming for Qf6.} Qe1+ {[%emt 0:00:15]} 48. Kg4 {[%emt 0:00:24]} Qe2+ {[%emt 0:00:57]} 49. Kg5 {[%emt 0:00:07]} Qe5+ {[%emt 0:00:17]} 50. Kh6 {[%emt 0:00:04]} Qh8+ {[%emt 0:00:02]} 51. Kg5 {[%emt 0:00:08] Qf6 is the strong threat.} Qe5+ {[%emt 0:00:01]} 52. Kg4 {[%emt 0:00:15]} Qe2+ {[%emt 0:00:05]} 53. Kh3 {[%emt 0:00:03] h6 would now be deadly.} Qf1+ {[%emt 0:01:00]} 54. Qg2 {[%emt 0:00:05]} Qf5+ {[%emt 0:00:43]} (54... Qd1 $11 55. Kh4 Qd4+ 56. Qg4 Qf6+ 57. Qg5 Qd4+ 58. Qg4 Qd2) 55. Qg4 {[%emt 0:00:15]} (55. Kh4 $18) 55... Qf1+ $16 {[%emt 0:00:19]} 56. Kh4 {[%emt 0:00:12]} Qf6+ {[%emt 0:01:42]} ({Black should try} 56... Ke7 $1 $14) 57. Kg3 {[%emt 0:00:05]} Qc3+ {[%emt 0:00:25]} 58. Qf3 {[%emt 0:00:01]} Qg7+ {[%emt 0:00:13]} 59. Kh4 {[%emt 0:00:28]} ({White has to play} 59. Kh3 $16 {Threatens to win with Qg3+.} Qh6 60. Qg3+ Kd7 61. Qe5) 59... Qd4+ $1 $11 {[%emt 0:00:07]} 60. Kh3 {[%emt 0:00:04]} Ke7 {[%emt 0:01:03] Dodges Qf8+} 61. Qg3 {[%emt 0:01:50]} Qd2 $2 {[%emt 0:00:48][%mdl 8192]} (61... Kf7 $11) 62. Qg7+ $18 {[%emt 0:00:14]} Ke8 {[%emt 0:00:05] [#]} 63. h6 {[%emt 0:02:07]} (63. Qf6 $1 $16) 63... Qe3+ $11 {[%emt 0:00:01]} 64. Kh4 {[%emt 0:01:17] Strongly threatening Qg6+.} Qf4+ {[%emt 0:00:25]} 65. Kh5 {[%emt 0:00:01] And now Qg6+ would win.} Qh2+ $2 {[%emt 0:00:02] [#]} (65... Qf5+ $11 66. Qg5 Qf3+ 67. Qg4 Qd5+ 68. Kg6 Qd3+ 69. Kg7 Qd7+ 70. Kh8 Qf7) 66. Kg5 $1 $18 {[%emt 0:00:53] Black must now prevent Kf6.} Qxa2 $2 {[%emt 0:02:36]} (66... Qd2+ $18 67. Kf6 Qd8+ 68. Kxe6 Qd5+ 69. Kf6 Qd4+ 70. Kg5 Qd5+ 71. Kg4 Qg2+ 72. Kf5 Qf3+ 73. Ke5 Qd5+ 74. Kf4 Qd2+ 75. Ke4 Qxa2) 67. Qg6+ {[%emt 0:32:19] White mates.} Ke7 {[%emt 0:00:00]} 68. Qf6+ {[%emt 0:00:00]} Ke8 {[%emt 0:00:21]} 69. h7 {[%emt 0:00:00]} Qd2+ {[%emt 0:00:32]} 70. Kg6 {[%emt 0:00:00]} Qg2+ {[%emt 0:00:09]} 71. Kh6 {[%emt 0:00:00]} Qh3+ {[%emt 0:00:47]} 72. Kg7 {[%emt 0:00:00] Weighted Error Value: White=0.16 (very precise) /Black=0.19 (very precise) .  Loses game:     	---       	Black=4      Mistake:       	White=6     	Black=5      Inaccurate:     	White=1     	Black=1      OK:         	White=23    	Black=23     Best:        	White=7     	Black=6      Strong:       	White=4     	Black=2} 1-0

[Event "1000GM Spring GM-A 2024"]
[Site "New York"]
[Date "2024.03.28"]
[Round "1.5"]
[White "Huston, Gus"]
[Black "Lu, Maximillian"]
[Result "1-0"]
[ECO "A53"]
[WhiteElo "2401"]
[BlackElo "2375"]
[Annotator "RC"]
[PlyCount "125"]
[EventDate "2024.03.26"]
[EventType "tourn"]
[EventCountry "USA"]
[SourceTitle "playchess.com"]
[Source "ChessBase"]
[SourceQuality "1"]
[TimeControl "5400+30"]

1. d4 {[%emt 0:00:17]} Nf6 {[%emt 0:00:05]} 2. c4 {[%emt 0:00:02]} d6 {[%emt 0:01:33]} 3. Nc3 {[%emt 0:00:26]} e5 {[%emt 0:00:02]} 4. d5 {[%emt 0:04:15]} e4 {[%emt 0:00:37]} 5. Bg5 {[%emt 0:00:42]} Be7 {[%emt 0:00:48]} 6. e3 {[%emt 0:06:19]} O-O {[%emt 0:01:36]} 7. Nge2 {[%emt 0:02:56]} Bf5 {[%emt 0:16:45]} 8. Ng3 {[%emt 0:00:50]} Qc8 {[%emt 0:01:03]} 9. Ncxe4 {[%emt 0:05:16]} Bxe4 {[%emt 0:06:58]} 10. Nxe4 {[%emt 0:00:49]} Nxe4 {[%emt 0:00:19]} 11. Bxe7 {[%emt 0:00:06]} Qf5 {[%emt 0:01:24]} 12. f3 {[%emt 0:04:06]} Re8 {[%emt 0:00:48]} 13. Bh4 {[%emt 0:00:42]} Qh5 {[%emt 0:04:44]} 14. Bf2 {[%emt 0:01:58]} Nxf2 {[%emt 0:00:14]} 15. Kxf2 {[%emt 0:00:02]} Nd7 {[%emt 0:00:53]} 16. Qd4 {[%emt 0:01:53]} Re7 {[%emt 0:05:58]} 17. Re1 {[%emt 0:00:29]} a5 {[%emt 0:00:46]} 18. Bd3 {[%emt 0:01:39]} Rae8 {[%emt 0:00:58]} 19. Bc2 {[%emt 0:03:20]} Nc5 {[%emt 0:01:25]} 20. Qf4 {[%emt 0:02:59]} b5 {[%emt 0:05:51]} 21. b3 {[%emt 0:04:43]} Re5 {[%emt 0:14:04]} 22. h4 {[%emt 0:02:54]} f5 {[%emt 0:04:34]} 23. cxb5 {[%emt 0:02:29]} Rxd5 {[%emt 0:02:56]} 24. Qc4 {[%emt 0:00:14]} Qf7 {[%emt 0:00:07]} 25. Rd1 {[%emt 0:00:41]} Rde5 {[%emt 0:01:57]} 26. Qxf7+ {[%emt 0:00:35]} Kxf7 {[%emt 0:00:01]} 27. Rhe1 {[%emt 0:00:12]} Rb8 {[%emt 0:03:05]} 28. a4 {[%emt 0:00:18]} g6 {[%emt 0:01:23]} 29. Rd4 {[%emt 0:00:50]} Ne6 {[%emt 0:00:55]} 30. Rc4 {[%emt 0:00:38]} Re8 {[%emt 0:03:45]} 31. Rd1 {[%emt 0:02:56]} Rc5 {[%emt 0:04:51]} 32. Rxc5 {[%emt 0:02:06]} Nxc5 {[%emt 0:01:49]} 33. Rb1 {[%emt 0:02:00]} Ra8 {[%emt 0:02:31]} 34. Ke2 {[%emt 0:01:52]} Ke6 {[%emt 0:00:02]} 35. Kd2 {[%emt 0:00:22]} Kd7 {[%emt 0:02:58]} 36. b4 {[%emt 0:01:58]} axb4 {[%emt 0:00:05]} 37. Rxb4 {[%emt 0:00:06]} c6 {[%emt 0:01:16]} 38. bxc6+ {[%emt 0:04:54]} Kxc6 {[%emt 0:00:01]} 39. Bd3 {[%emt 0:03:41]} Nxd3 {[%emt 0:04:34]} 40. Kxd3 {[%emt 0:00:38]} Kc5 {[%emt 0:02:36]} 41. Rc4+ {[%emt 0:00:41]} Kd5 {[%emt 0:00:00]} 42. Kc3 {[%emt 0:00:14]} h6 {[%emt 0:01:45]} 43. Kb3 {[%emt 0:01:31]} g5 {[%emt 0:03:58]} 44. h5 {[%emt 0:00:07]} Ra7 {[%emt 0:00:00]} 45. Rb4 {[%emt 0:00:29]} Kc6 {[%emt 0:00:00]} 46. Rb5 {[%emt 0:06:30]} Re7 {[%emt 0:00:00]} 47. Rxf5 {[%emt 0:00:08]} Rxe3+ {[%emt 0:00:00]} 48. Kb4 {[%emt 0:00:40]} g4 {[%emt 0:00:08]} 49. Rf6 {[%emt 0:00:09]} gxf3 {[%emt 0:02:05]} 50. gxf3 {[%emt 0:00:02]} Re5 {[%emt 0:00:07]} 51. Rxh6 {[%emt 0:00:50]} Rf5 {[%emt 0:00:00]} 52. Rh8 {[%emt 0:00:40]} Rf4+ {[%emt 0:01:34]} 53. Ka5 {[%emt 0:00:07]} Rxf3 {[%emt 0:00:11]} 54. h6 {[%emt 0:00:10]} Rh3 {[%emt 0:00:17]} 55. Ka6 {[%emt 0:00:39]} Rh4 {[%emt 0:01:05]} 56. a5 {[%emt 0:00:10]} Rh5 {[%emt 0:00:32]} 57. h7 {[%emt 0:00:17]} Kd5 {[%emt 0:00:29]} 58. Kb6 {[%emt 0:00:16]} Rh1 {[%emt 0:00:28]} 59. a6 {[%emt 0:00:10]} Rb1+ {[%emt 0:00:12]} 60. Kc7 {[%emt 0:00:14]} Rc1+ {[%emt 0:00:08]} 61. Kd7 {[%emt 0:00:12]} Rg1 {[%emt 0:00:50]} 62. Rg8 {[%emt 0:00:12]} Rf1 {[%emt 0:01:24]} 63. Rh8 1-0

[Event "1000GM Spring GM-A 2024"]
[Site "New York"]
[Date "2024.03.28"]
[Round "2.1"]
[White "Shlyakhtenko, Robert"]
[Black "Lu, Maximillian"]
[Result "1/2-1/2"]
[ECO "D90"]
[WhiteElo "2384"]
[BlackElo "2375"]
[Annotator "RC"]
[PlyCount "48"]
[EventDate "2024.03.26"]
[EventType "tourn"]
[EventCountry "USA"]
[SourceTitle "playchess.com"]
[Source "ChessBase"]
[SourceQuality "1"]
[TimeControl "5400+30"]

1. d4 {[%emt 0:00:04]} Nf6 {[%emt 0:00:02]} 2. c4 {[%emt 0:00:12]} g6 {[%emt 0:00:05]} 3. Nc3 {[%emt 0:00:18]} d5 {[%emt 0:00:02]} 4. Nf3 {[%emt 0:00:23]} Bg7 {[%emt 0:00:03]} 5. h4 {[%emt 0:00:01]} dxc4 {[%emt 0:00:45]} 6. e4 {[%emt 0:00:10]} c5 {[%emt 0:00:23]} 7. d5 {[%emt 0:00:09]} b5 {[%emt 0:00:06]} 8. h5 {[%emt 0:00:16]} Nxh5 {[%emt 0:01:08]} 9. Nxb5 {[%emt 0:00:29]} Qa5+ {[%emt 0:00:23]} 10. Nc3 {[%emt 0:00:13]} Nd7 {[%emt 0:01:06]} 11. Bd2 {[%emt 0:00:50]} Rb8 {[%emt 0:00:58]} 12. Rb1 {[%emt 0:02:08]} Ba6 {[%emt 0:01:35]} 13. g4 {[%emt 0:06:09]} Nhf6 {[%emt 0:00:09]} 14. Bh3 {[%emt 0:00:19]} h5 {[%emt 0:13:24]} 15. gxh5 {[%emt 0:01:46]} Nxh5 {[%emt 0:00:56]} 16. Bxd7+ {[%emt 0:03:17]} Kxd7 {[%emt 0:00:01]} 17. Ng5 {[%emt 0:06:28]} Nf4 {[%emt 0:17:14]} 18. Qg4+ {[%emt 0:27:19]} f5 {[%emt 0:00:22]} 19. Rxh8 {[%emt 0:02:07]} Rf8 {[%emt 1:01:18]} 20. Rg8 Rxg8 {[%emt 0:00:00]} 21. Qxf4 {[%emt 0:01:11]} Rh8 {[%emt 0:00:00]} 22. Ke2 {[%emt 0:00:08]} Rh1 23. Re1 Rxe1+ {[%emt 0:00:00]} 24. Kf3 {[%emt 0:35:53]} fxe4+ {[%emt 0:01:00]} 1/2-1/2